bitfinex/quotes_ETHUSD_20250110
["timestamp","ask_amount","ask_price","bid_price","bid_amount"]
[1736543290737,2.571613,3263.2,3262.5,0.7981]
[1736543290875,0.7646,3263.1,3262.5,0.7981]
[1736543291076,0.79768741,3263.1,3262.5,0.7981]
[1736543291502,3.06469,3263.0,3262.5,0.7981]
[1736543291805,3.09766635,3263.0,3262.5,0.7981]
[1736543292628,3.09766635,3263.0,3262.2,0.55]
[1736543293386,0.03297635,3263.0,3262.2,0.55]
[1736543294184,3.09763635,3263.0,3262.2,0.55]
[1736543298819,0.03297635,3263.0,3262.2,0.55]
[1736543299040,3.06476,3262.9,3262.2,0.55]
[1736543299331,0.03248539,3262.8,3262.2,0.55]
[1736543301495,0.03248539,3262.8,3262.4,0.55]
[1736543301710,0.03248539,3262.8,3262.6,0.55]
[1736543301891,3.06402,3263.7,3262.9,0.55]
[1736543302091,3.06402,3263.7,3262.9,0.58064576]
[1736543302291,0.8215,3263.9,3262.9,0.58064576]
[1736543302292,0.03331473,3263.6,3263.1,0.55]
[1736543302826,3.88539,3263.9,3263.1,0.55]
[1736543302827,0.03313558,3263.5,3263.1,0.55]
[1736543302979,3.06389,3263.9,3263.1,0.55]
[1736543303181,0.03304703,3263.8,3263.3,0.55]
[1736543303396,3.06367,3264.1,3263.2,3.09504282]
[1736543303731,0.03340643,3264.0,3263.3,1.3438]
[1736543303892,0.03340643,3264.0,3263.3,0.7938]
[1736543304095,0.03340643,3264.0,3263.6,0.55]
[1736543304310,3.06348,3264.3,3263.6,0.55]
[1736543304527,0.0318414,3263.9,3263.6,0.55]
[1736543304710,3.324013,3264.5,3263.6,0.55]
[1736543304711,3.06355,3264.2,3263.6,0.55]
[1736543304913,0.03179555,3263.8,3263.6,0.55]
[1736543305137,3.06355,3264.2,3263.6,0.55]
[1736543305600,0.03235659,3264.1,3263.6,0.55]
[1736543308043,3.09599659,3264.1,3263.6,0.55]
[1736543309124,3.06372,3264.0,3263.5,0.7938]
[1736543309454,3.40147635,3263.9,3263.2,0.774]
[1736543310610,3.06395,3263.8,3263.2,0.774]
[1736543310811,0.03247119,3263.7,3263.2,0.774]
[1736543311757,3.09650119,3263.7,3263.2,0.774]
[1736543311944,3.06403,3263.7,3263.2,0.774]
[1736543312144,0.03252734,3263.6,3263.2,0.774]
[1736543314814,3.368813,3263.9,3263.2,0.774]
[1736543315141,0.03224661,3263.8,3263.2,0.774]
[1736543316563,0.03224661,3263.8,3263.0,0.55]
[1736543319523,0.03224661,3263.8,3263.1,0.8137]
[1736543320569,0.03224661,3263.8,3262.7,0.61213217]
[1736543320570,0.03224661,3263.8,3263.4,0.55]
[1736543321168,2.571613,3264.2,3263.4,0.55]
[1736543321363,0.03248656,3263.7,3263.4,0.55]
[1736543321570,2.571613,3264.2,3263.4,0.55]
[1736543321720,0.03246483,3263.6,3263.4,0.55]
[1736543321927,2.571613,3264.2,3263.4,0.55]
[1736543322133,0.03212956,3263.5,3263.4,0.55]
[1736543322636,0.0321778,3263.5,3263.4,0.55]
[1736543322836,2.571613,3264.2,3263.4,0.55]
[1736543323146,0.03259759,3264.1,3263.4,0.55]
[1736543330679,0.03259759,3264.1,3263.4,0.7894]
[1736543330922,0.03259759,3264.1,3263.5,0.55]
[1736543331643,2.571613,3264.5,3263.5,0.55]
[1736543331644,3.360313,3264.5,3263.5,0.55]
[1736543331960,0.03084003,3264.4,3263.5,0.55]
[1736543334801,0.03084003,3264.4,3263.8,0.55]
[1736543334959,0.03084003,3264.4,3263.9,0.03063413]
[1736543335160,0.8252,3264.8,3263.9,0.03063413]
[1736543335408,0.0293992,3264.3,3264.1,0.55]
[1736543335582,2.579113,3265.3,3264.3,0.55]
[1736543335583,0.8252,3265.2,3264.3,0.55]
[1736543335785,0.8252,3265.2,3264.6,0.55]
[1736543336069,0.0300833,3265.1,3264.6,0.55]
[1736543338922,0.0300833,3265.1,3264.6,0.5806281]
[1736543339441,2.571613,3265.3,3264.6,0.5806281]
[1736543339575,0.02994109,3265.0,3264.6,0.5806281]
[1736543339922,0.02987117,3264.9,3264.6,0.5806281]
[1736543340289,0.8213,3265.5,3264.6,0.5806281]
[1736543340489,0.02983888,3264.8,3264.6,0.5806281]
[1736543340714,0.8213,3265.5,3264.6,0.5806281]
[1736543340905,0.02974613,3264.7,3264.6,0.55]
[1736543341117,0.8213,3265.5,3264.6,0.55]
[1736543341319,0.8213,3265.5,3264.7,0.85882708]
[1736543341489,0.03068701,3265.4,3264.8,0.55]
[1736543343089,0.03068701,3265.4,3264.9,0.03062706]
[1736543343298,0.829,3266.2,3264.8,0.55]
[1736543343523,0.02996572,3265.3,3265.2,0.55]
[1736543343680,0.829,3266.5,3265.4,0.55]
[1736543343910,0.03073437,3266.4,3265.7,0.55]
[1736543346523,2.571613,3266.3,3265.7,0.55]
[1736543346899,0.03131989,3266.2,3265.7,0.55]
[1736543348990,0.03131989,3266.2,3265.7,0.58061856]
[1736543349190,0.8313,3266.7,3265.7,0.58061856]
[1736543349416,0.03093711,3266.1,3265.9,0.55]
[1736543349587,0.8313,3266.7,3265.9,0.58061604]
[1736543349997,0.03118775,3266.6,3265.9,0.58061604]
[1736543353021,3.402913,3266.9,3266.1,0.55]
[1736543353545,0.03252485,3266.8,3266.1,0.55]
[1736543354393,0.03252485,3266.8,3266.1,0.58061451]
[1736543354598,0.03252485,3266.8,3266.3,0.55]
[1736543354899,0.03331843,3266.7,3266.4,0.03061132]
[1736543355337,8.713113,3267.2,3266.4,0.03061132]
[1736543355493,0.03315238,3266.6,3266.4,0.03061132]
[1736543355844,8.713113,3267.2,3266.4,0.03061132]
[1736543356035,0.03330418,3266.5,3266.3,0.55]
[1736543356289,0.03323438,3266.4,3266.3,0.55]
[1736543356445,8.713113,3267.2,3266.3,0.55]
[1736543356642,0.03372291,3267.1,3266.3,0.55]
[1736543357389,0.7615,3266.8,3266.3,0.55]
[1736543357555,0.7615,3266.8,3265.8,0.7567]
[1736543357755,0.03356778,3266.7,3265.8,0.7567]
[1736543358077,2.571613,3266.6,3265.8,0.7567]
[1736543358387,0.03342819,3266.5,3265.8,0.7567]
[1736543358545,2.571613,3266.3,3265.8,0.7567]
[1736543358750,2.571613,3266.3,3265.4,0.62096872]
[1736543358751,2.571613,3266.0,3265.1,0.7567]
[1736543359153,0.03229717,3265.9,3265.4,0.7567]
[1736543359462,3.330013,3266.3,3265.5,0.55]
[1736543359644,0.03249923,3266.2,3265.5,0.55]
[1736543360856,0.03249923,3266.2,3265.6,0.03062041]
[1736543361262,0.7584,3266.5,3265.6,0.03062041]
[1736543361464,0.03257046,3266.4,3265.6,0.03062041]
[1736543361665,0.03257046,3266.4,3266.0,0.55]
[1736543361899,0.7584,3266.8,3266.1,0.03061402]
[1736543362208,0.03311544,3266.7,3266.1,0.03061402]
[1736543362626,0.03311544,3266.7,3266.3,0.55]
[1736543362903,0.03304564,3266.6,3266.3,0.55]
[1736543363074,2.571613,3266.9,3266.3,0.55]
[1736543363278,0.03327096,3266.8,3266.3,0.55]
[1736543363663,0.03327096,3266.8,3266.4,0.03061364]
[1736543364105,2.571613,3267.2,3266.6,0.55]
[1736543364261,5.38,3267.7,3266.7,0.03061]
[1736543364262,0.03367039,3267.1,3266.7,0.03061]
[1736543364601,2.571613,3267.5,3266.9,0.55]
[1736543364799,0.03360061,3267.0,3266.9,0.55]
[1736543365401,2.571613,3267.5,3266.9,0.55]
[1736543365613,0.03360061,3267.0,3266.9,0.55]
[1736543366077,2.571613,3267.5,3266.9,0.55]
[1736543366284,0.03387972,3267.4,3266.9,0.55]
[1736543370318,0.03387972,3267.4,3266.9,0.58060781]
[1736543370793,0.7584,3267.7,3266.9,0.58060781]
[1736543371321,0.03434973,3267.6,3266.9,0.58060781]
[1736543372084,8.745213,3268.1,3267.1,0.55]
[1736543372312,0.03452517,3268.0,3267.1,0.55]
[1736543372617,2.571613,3267.5,3267.1,0.55]
[1736543372994,2.571613,3267.5,3266.4,0.2335]
[1736543372995,0.03448292,3267.4,3266.5,0.817]
[1736543373923,0.03448292,3267.4,3266.6,0.55]
[1736543374726,0.03448292,3267.4,3266.7,0.03060681]
[1736543375839,0.03448292,3267.4,3266.6,0.55]
[1736543376040,0.03448292,3267.4,3266.7,0.03060683]
[1736543376336,0.03448292,3267.4,3266.9,0.55]
[1736543376502,0.03448292,3267.4,3267.0,0.03060556]
[1736543376702,0.7861,3267.7,3267.0,0.03060556]
[1736543376902,0.03518589,3267.6,3267.0,0.03060556]
[1736543379037,2.571613,3267.8,3267.0,0.03060556]
[1736543379241,0.03514266,3267.5,3266.9,0.55]
[1736543379550,0.03507291,3267.4,3266.9,0.55]
[1736543380038,2.571613,3267.8,3266.9,0.55]
[1736543380244,0.03500315,3267.3,3266.9,0.55]
[1736543380446,2.571613,3267.8,3266.9,0.55]
[1736543380663,6.8795875,3268.7,3266.8,0.7972]
[1736543380664,0.03497018,3267.2,3266.8,0.7972]
[1736543380836,0.03497018,3267.2,3265.4,0.25]
[1736543380837,2.571613,3267.2,3266.1,0.226]
[1736543381007,0.03490041,3267.1,3266.0,0.226]
[1736543381341,2.571613,3267.2,3265.9,0.783]
[1736543381516,2.571613,3267.2,3266.0,0.5575]
[1736543381846,2.571613,3267.2,3266.1,0.60925528]
[1736543382041,2.571613,3267.2,3266.1,0.63986693]
[1736543382251,0.03490041,3267.1,3266.2,0.55]
[1736543383033,0.03490041,3267.1,3266.4,0.55]
[1736543383373,0.03483064,3267.0,3266.5,0.03061163]
[1736543383664,0.03483064,3267.0,3266.4,0.99111117]
[1736543383872,2.571613,3267.4,3266.4,0.99111117]
[1736543384049,0.03476087,3266.9,3266.4,0.55]
[1736543384219,2.571613,3267.4,3266.5,0.03060996]
[1736543384418,0.03480507,3266.8,3266.5,0.03060996]
[1736543384633,2.571613,3267.4,3266.5,0.03060996]
[1736543384842,0.03473529,3266.7,3266.5,0.03060996]
[1736543385057,2.571613,3267.4,3266.5,0.03060996]
[1736543385565,0.03503994,3267.3,3266.5,0.03060996]
[1736543387240,0.03503994,3267.3,3266.6,0.8115]
[1736543387505,0.03503994,3267.3,3266.7,0.58060996]
[1736543387707,0.7717,3267.4,3266.7,0.58060996]
[1736543388012,0.03510052,3267.3,3266.7,0.55]
[1736543390035,0.03510052,3267.3,3266.4,0.5575]
[1736543390218,2.571613,3267.1,3266.4,0.55]
[1736543390513,0.03489123,3267.0,3266.4,0.55]
[1736543391101,0.7717,3266.9,3266.4,0.55]
[1736543391331,0.03475169,3266.8,3266.4,0.55]
[1736543392303,2.60636469,3266.8,3265.7,0.226]
[1736543392717,2.60636469,3266.8,3265.8,0.0075]
[1736543393023,2.60636469,3266.8,3265.8,0.5575]
[1736543393796,2.60636469,3266.8,3265.6,0.5575]
[1736543394395,0.7717,3266.7,3265.6,0.5575]
[1736543394901,0.03402085,3266.6,3265.8,0.55]
[1736543398114,0.03402085,3266.6,3265.9,0.03061545]
[1736543400329,0.03402085,3266.6,3265.8,0.55]
[1736543400537,0.03402085,3266.6,3265.8,0.96685169]
[1736543400698,0.03402085,3266.6,3265.9,0.03061546]
[1736543402038,0.03402085,3266.6,3265.8,0.96685169]
[1736543402039,0.8005,3266.5,3265.8,0.96685169]
[1736543402437,0.03322914,3266.4,3265.8,0.96685169]
[1736543403712,0.03322914,3266.4,3265.6,0.0075]
[1736543404147,2.571613,3266.2,3264.9,3.0]
[1736543404322,0.8055,3266.1,3265.0,1.025]
[1736543404523,2.571613,3265.9,3265.0,0.799]
[1736543404708,0.03300943,3265.8,3265.0,0.799]
[1736543404911,0.8055,3265.7,3265.0,0.799]
[1736543405128,0.03286975,3265.6,3265.0,0.799]
[1736543405736,0.03286975,3265.6,3265.1,0.03062242]
[1736543405936,0.03286975,3265.6,3265.2,0.5575]
[1736543406141,0.03286975,3265.6,3265.4,0.55]
[1736543406340,6.2002,3266.0,3265.4,0.55]
[1736543406527,0.03272363,3265.9,3265.4,0.55]
[1736543407451,0.03272363,3265.9,3265.0,0.799]
[1736543408530,0.7969,3265.8,3264.6,0.8283]
[1736543408939,0.03245913,3265.7,3264.6,0.8283]
[1736543409140,0.7969,3265.8,3264.9,0.55]
[1736543409333,0.03210509,3265.7,3264.9,0.55]
[1736543409929,0.03210509,3265.7,3265.0,0.03062375]
[1736543411330,0.03210509,3265.7,3264.9,0.55]
[1736543414162,0.03210509,3265.7,3265.2,0.55]
[1736543414321,0.03210509,3265.7,3265.3,0.03061999]
[1736543414523,5.38,3266.0,3265.3,0.03061999]
[1736543414856,0.03087607,3265.9,3265.7,0.0075]
[1736543415047,0.03087607,3265.9,3265.8,1.3252]
[1736543415244,0.8316,3266.7,3266.0,0.0075]
[1736543415435,0.8316,3267.2,3266.4,0.55]
[1736543415619,0.03119875,3266.6,3266.5,0.03060967]
[1736543415817,0.8316,3267.2,3266.5,0.03060967]
[1736543416326,0.03185161,3267.1,3266.5,0.03060967]
[1736543416779,0.03185161,3267.1,3266.6,0.5575]
[1736543416955,6.1816,3267.5,3266.8,0.8275]
[1736543417153,0.03188805,3267.0,3266.9,0.58060502]
[1736543417393,6.1816,3267.5,3266.9,0.77641552]
[1736543417567,0.03184047,3267.0,3266.9,0.77641552]
[1736543417767,6.1816,3267.5,3266.9,0.77641552]
[1736543417969,0.03184047,3267.0,3266.9,0.77641552]
[1736543418167,6.1816,3267.5,3266.9,0.77641552]
[1736543418367,0.03184047,3267.0,3266.9,0.77641552]
[1736543418569,6.1816,3267.5,3266.9,0.77641552]
[1736543418768,0.03181767,3267.0,3266.9,0.77641552]
[1736543418966,6.1816,3267.5,3266.9,0.77641552]
[1736543419267,0.03190858,3267.0,3266.9,0.77641552]
[1736543419888,0.8016,3267.5,3266.9,0.77641552]
[1736543420056,0.03190858,3267.0,3266.9,0.77641552]
[1736543420266,0.8016,3267.5,3266.9,0.77641552]
[1736543420794,0.03218774,3267.4,3266.9,0.77641552]
[1736543421391,0.03218774,3267.4,3267.1,0.55]
[1736543421595,0.03218774,3267.4,3267.1,0.58060506]
[1736543423234,0.03218774,3267.4,3266.9,0.55]
[1736543423773,2.60380074,3267.4,3266.9,0.55]
[1736543426070,2.571613,3267.1,3266.9,0.55]
[1736543426275,0.8223,3267.0,3266.1,1.35939071]
[1736543426483,0.8223,3267.0,3266.1,0.60439071]
[1736543426484,2.571613,3266.6,3266.1,0.60439071]
[1736543426908,0.03279927,3266.5,3266.1,0.60439071]
[1736543428073,0.03279927,3266.5,3266.2,0.03061259]
[1736543428714,0.03279927,3266.5,3266.2,0.55]
[1736543430234,0.03279927,3266.5,3266.3,0.0306126]
[1736543430713,2.571613,3266.9,3266.3,0.0306126]
[1736543431221,0.03154525,3266.8,3266.3,0.0306126]
[1736543432614,0.06277153,3266.8,3266.3,0.0306126]
[1736543434115,0.06277153,3266.8,3266.1,0.03061229]
[1736543434411,2.571613,3266.3,3265.7,0.7534]
[1736543434916,0.06246303,3266.2,3265.5,0.226]
[1736543435113,0.06246303,3266.2,3265.5,0.0075]
[1736543435291,2.571613,3266.3,3265.5,0.0075]
[1736543435489,2.571613,3266.3,3265.5,0.5575]
[1736543435913,0.06245931,3266.2,3265.5,0.5575]
[1736543436119,0.06245931,3266.2,3265.7,0.55]
[1736543438020,0.06245931,3266.2,3264.8,5.25]
[1736543438021,3.345213,3266.0,3265.1,0.7693]
[1736543438482,0.06230311,3265.9,3265.2,0.55]
[1736543439083,2.571613,3265.7,3264.8,0.7693]
[1736543439304,2.571613,3265.4,3264.8,0.7693]
[1736543439508,2.571613,3265.4,3264.6,0.226]
[1736543439722,0.0613104,3265.3,3264.6,0.226]
[1736543439907,2.571613,3265.4,3264.6,0.226]
[1736543440104,2.571613,3265.4,3264.6,0.0075]
[1736543440520,2.571613,3265.1,3264.5,0.7693]
[1736543440817,2.571613,3265.1,3264.9,0.55]
[1736543440818,0.06134114,3265.0,3264.9,0.55]
[1736543441441,0.06134114,3265.0,3264.9,1.3268]
[1736543441583,3.345213,3265.8,3265.0,0.0075]
[1736543442017,0.0606699,3265.7,3265.0,0.0075]
[1736543442444,0.0606699,3265.7,3265.1,0.55]
[1736543442754,0.0606699,3265.7,3265.2,0.03062102]
[1736543443024,3.345213,3265.8,3265.2,0.03062102]
[1736543443412,0.06093903,3265.7,3265.2,0.03062102]
[1736543443727,3.345213,3265.8,3265.2,0.03062102]
[1736543444039,0.06144626,3265.7,3265.1,0.55]
[1736543444336,0.06144626,3265.7,3265.0,0.5575]
[1736543444645,0.06137734,3265.6,3265.2,0.03062103]
[1736543444787,3.345213,3265.8,3265.2,0.03062103]
[1736543444983,0.06131776,3265.5,3265.1,0.55]
[1736543445235,3.345213,3265.8,3265.0,0.5575]
[1736543445399,0.06110625,3265.4,3265.1,0.03062106]
[1736543445591,3.345213,3265.8,3265.0,0.5575]
[1736543445792,0.0613284,3265.3,3265.0,0.5575]
[1736543446100,3.345213,3265.8,3265.0,0.5575]
[1736543446297,0.06107783,3265.2,3265.0,0.5575]
[1736543446503,0.7736,3265.8,3265.0,0.58812118]
[1736543446719,0.06105639,3265.1,3265.0,0.76564824]
[1736543446890,0.7736,3265.8,3265.0,0.76564824]
[1736543447216,0.06155207,3265.7,3265.0,0.76564824]
[1736543448427,0.06155207,3265.7,3264.9,0.55]
[1736543448626,0.7537,3265.6,3264.9,0.55]
[1736543448925,0.7537,3265.6,3264.6,0.8266]
[1736543449137,0.06098599,3265.5,3264.6,0.8266]
[1736543449430,0.7537,3265.6,3264.7,0.55]
[1736543449932,0.81471857,3265.5,3264.7,0.55]
[1736543450521,0.81471857,3265.5,3264.4,0.8266]
[1736543451040,0.7537,3265.4,3264.5,0.55]
[1736543451551,0.7537,3265.2,3264.5,0.55]
[1736543451932,0.06093287,3265.1,3264.5,0.55]
[1736543452137,0.06093287,3265.1,3264.1,1.0526]
[1736543452319,0.7537,3265.0,3264.2,0.5575]
[1736543452514,0.7537,3265.0,3263.7,5.25]
[1736543452515,0.7537,3265.0,3263.8,0.8266]
[1736543452759,0.06056919,3264.9,3263.8,1.17564027]
[1736543453066,0.06056919,3264.9,3264.1,0.55]
[1736543453357,0.06056919,3264.9,3264.1,0.58063234]
[1736543454115,0.7537,3264.8,3264.1,0.55]
[1736543454521,0.06001112,3264.7,3263.9,0.55]
[1736543454716,0.06001112,3264.7,3263.9,1.57016403]
[1736543454964,0.7537,3264.8,3263.9,1.57016403]
[1736543455341,0.06001112,3264.7,3263.9,1.57016403]
[1736543455545,0.06001112,3264.7,3263.9,2.19041225]
[1736543455861,0.05994214,3264.6,3263.9,1.17024822]
[1736543456224,0.7537,3264.8,3263.9,1.17024822]
[1736543456421,0.05987315,3264.5,3263.9,1.17024822]
[1736543456621,0.7537,3264.8,3264.0,0.03063236]
[1736543456827,0.05980416,3264.4,3264.0,0.03063236]
[1736543457131,0.7537,3264.8,3264.1,0.55]
[1736543457338,0.05973517,3264.3,3264.0,0.55]
[1736543457552,0.824,3264.3,3264.0,0.55]
[1736543458275,0.05966617,3264.2,3264.0,0.55]
[1736543458577,0.05966617,3264.2,3263.5,0.5575]
[1736543458873,0.824,3264.3,3263.7,0.55]
[1736543459044,2.571613,3265.0,3263.7,0.55]
[1736543459045,0.05962914,3264.1,3263.7,0.55]
[1736543459378,0.824,3264.0,3263.7,0.55]
[1736543459733,0.05934555,3263.9,3263.7,0.55]
[1736543461535,0.824,3264.0,3263.7,0.55]
[1736543461876,0.05952875,3263.9,3263.7,0.55]
[1736543470868,0.05952875,3263.9,3263.7,3.61399]
[1736543471187,0.824,3264.0,3263.7,4.05336499]
[1736543471387,0.824,3264.0,3263.8,0.03063625]
[1736543471543,0.05934811,3263.9,3263.8,0.03063625]
[1736543471741,0.8016,3264.2,3263.8,0.03063625]
[1736543471942,0.8016,3264.2,3263.9,0.55]
[1736543472167,0.0593941,3264.1,3263.9,0.55]
[1736543473568,0.0593941,3264.1,3263.8,0.03063625]
[1736543474195,0.0593941,3264.1,3263.7,3.61398]
[1736543474352,0.0593941,3264.1,3263.8,0.03063541]
[1736543477369,0.0593941,3264.1,3263.7,3.61398]
[1736543482457,0.0593941,3264.1,3263.7,0.55]
[1736543484209,0.0593941,3264.1,3263.7,3.61395]
[1736543484401,0.0593941,3264.1,3263.7,4.03751699]
[1736543484941,0.0593941,3264.1,3263.8,0.03063545]
[1736543485120,0.0593941,3264.1,3264.0,4.41682]
[1736543485299,0.7797,3265.2,3264.9,3.06283]
[1736543485649,3.06168,3266.2,3265.3,0.55]
[1736543485650,0.7797,3266.0,3265.3,0.55]
[1736543486389,0.7797,3266.0,3265.5,3.55]
[1736543487222,0.7797,3266.0,3265.4,0.55]
[1736543487519,0.8154,3265.9,3264.7,0.7563]
[1736543487814,3.87735,3265.9,3265.0,3.0]
[1736543487981,3.87735,3265.9,3265.1,0.55]
[1736543488375,3.87735,3265.9,3265.0,3.61276]
[1736543489286,0.8255,3265.8,3265.0,3.61276]
[1736543489716,0.8255,3265.7,3265.0,0.55]
[1736543490414,0.8255,3265.6,3264.7,3.06301]
[1736543490609,0.8311,3265.2,3264.2,0.8215]
[1736543490820,0.8311,3265.2,3264.4,3.06326]
[1736543491023,0.8311,3265.2,3264.5,6.06323]
[1736543491323,0.8311,3265.2,3264.6,3.64376823]
[1736543492042,0.8311,3265.2,3264.8,0.55]
[1736543492249,0.8311,3265.2,3264.6,0.55]
[1736543492464,0.8311,3265.2,3264.6,4.06542928]
[1736543493044,0.05579249,3265.1,3264.6,4.06542928]
[1736543493742,0.05579249,3265.1,3264.6,4.03480106]
[1736543495464,0.05579249,3265.1,3264.6,0.97167106]
[1736543495637,0.05579249,3265.1,3264.6,0.55]
[1736543497234,0.05579249,3265.1,3264.6,0.58062824]
[1736543497432,0.05579249,3265.1,3264.6,0.55]
[1736543497820,0.7783,3265.0,3264.6,0.55]
[1736543498020,0.05554536,3264.9,3264.6,0.55]
[1736543500173,0.05554536,3264.9,3264.7,0.55]
[1736543500377,0.05554536,3264.9,3264.8,3.64359825]
[1736543500743,0.7783,3265.3,3264.9,0.55]
[1736543501139,0.05588726,3265.2,3264.9,0.55]
[1736543501557,0.7783,3265.3,3264.8,0.55]
[1736543501753,0.05581829,3265.1,3264.8,0.55]
[1736543502043,0.7783,3265.3,3264.6,3.06313]
[1736543502044,0.05577918,3265.0,3264.7,0.55]
[1736543502245,0.7783,3265.3,3264.7,3.974373]
[1736543502582,0.05571021,3264.9,3264.8,0.03062619]
[1736543502756,0.7783,3265.3,3264.8,0.03062619]
[1736543502968,0.05570648,3264.9,3264.8,0.03062619]
[1736543503144,0.7783,3265.3,3264.8,0.03062619]
[1736543503343,0.05570648,3264.9,3264.8,0.03062619]
[1736543503678,0.05570648,3264.9,3264.8,0.43112611]
[1736543503850,0.7783,3265.3,3264.8,0.40049992]
[1736543504058,0.7783,3265.3,3264.7,3.61306]
[1736543504059,0.05570275,3264.9,3264.7,3.61306]
[1736543504255,0.7783,3265.3,3264.7,3.61306]
[1736543504457,0.05563377,3264.8,3264.7,3.61306]
[1736543504674,0.7783,3265.3,3264.7,3.61306]
[1736543504880,0.05563377,3264.8,3264.7,3.61306]
[1736543505086,0.7783,3265.3,3264.7,3.974366]
[1736543505385,0.05563377,3264.8,3264.7,3.974366]
[1736543505580,0.7783,3265.3,3264.7,3.974366]
[1736543506084,0.05590965,3265.2,3264.7,3.974366]
[1736543506915,0.05590965,3265.2,3264.9,0.55]
[1736543507101,0.7783,3265.3,3264.9,0.55]
[1736543507312,0.05581692,3265.1,3264.9,0.55]
[1736543507513,0.7783,3265.3,3264.9,0.55]
[1736543507699,0.05574795,3265.0,3264.9,0.55]
[1736543507885,0.7783,3265.3,3264.9,0.55]
[1736543508089,0.05574795,3265.0,3264.9,0.55]
[1736543508288,0.7783,3265.3,3264.9,0.55]
[1736543508503,0.05574795,3265.0,3264.9,0.55]
[1736543508700,0.7783,3265.3,3264.9,0.55]
[1736543508905,0.05574795,3265.0,3264.9,0.55]
[1736543509104,0.7783,3265.3,3264.9,0.55]
[1736543509299,0.05574795,3265.0,3264.9,0.55]
[1736543509506,0.7783,3265.3,3264.9,0.55]
[1736543509815,0.05574795,3265.0,3264.9,0.55]
[1736543510015,0.7783,3265.3,3264.9,0.55]
[1736543510520,0.05588588,3265.2,3264.9,0.55]
[1736543510724,0.7783,3265.3,3264.9,0.55]
[1736543510898,0.05581692,3265.1,3264.9,0.55]
[1736543511102,0.7783,3265.3,3264.9,0.55]
[1736543511298,0.05574795,3265.0,3264.9,0.55]
[1736543511499,0.7783,3265.3,3264.9,0.55]
[1736543511699,0.05574795,3265.0,3264.9,0.55]
[1736543511994,0.7783,3265.3,3264.9,0.55]
[1736543512189,0.05574795,3265.0,3264.9,0.55]
[1736543512389,0.7783,3265.3,3264.9,0.55]
[1736543512592,0.05574795,3265.0,3264.9,0.55]
[1736543512821,0.7783,3265.3,3264.9,0.55]
[1736543512998,0.05574795,3265.0,3264.9,0.55]
[1736543513200,0.7783,3265.3,3264.9,0.55]
[1736543513399,0.05574795,3265.0,3264.9,0.55]
[1736543513624,0.7783,3265.3,3264.9,0.55]
[1736543513825,0.05574795,3265.0,3264.9,0.55]
[1736543514024,0.7783,3265.3,3264.9,0.55]
[1736543514490,0.05597918,3265.2,3264.9,0.55]
[1736543514827,0.7783,3265.3,3264.9,0.55]
[1736543515324,0.05597918,3265.2,3264.9,0.55]
[1736543515528,0.7783,3265.3,3264.9,0.55]
[1736543515697,0.05591022,3265.1,3264.9,0.55]
[1736543515905,0.7783,3265.3,3264.9,0.55]
[1736543516104,0.05584125,3265.0,3264.9,0.55]
[1736543516307,0.7783,3265.3,3264.9,0.55]
[1736543516627,0.05600903,3265.2,3264.9,0.55]
[1736543517027,0.7783,3265.3,3264.9,0.55]
[1736543517225,0.05594007,3265.1,3264.9,0.55]
[1736543517404,0.7783,3265.3,3264.9,0.55]
[1736543517603,0.0558711,3265.0,3264.9,0.55]
[1736543517827,0.7783,3265.3,3264.9,0.55]
[1736543517994,0.0558711,3265.0,3264.9,0.55]
[1736543518195,0.7783,3265.3,3264.9,0.55]
[1736543518413,0.0558711,3265.0,3264.9,0.55]
[1736543518587,0.7783,3265.3,3264.9,0.55]
[1736543518795,0.0558711,3265.0,3264.9,0.55]
[1736543519429,0.7783,3265.3,3264.9,0.55]
[1736543519627,0.0558711,3265.0,3264.9,0.55]
[1736543519836,0.7783,3265.3,3264.9,0.55]
[1736543519996,0.0558711,3265.0,3264.9,0.55]
[1736543520199,0.7783,3265.3,3264.9,0.55]
[1736543520432,0.0558711,3265.0,3264.9,0.55]
[1736543520918,0.7783,3265.3,3264.9,0.55]
[1736543521127,0.05600903,3265.2,3264.9,0.55]
[1736543521320,0.7783,3265.3,3264.9,0.55]
[1736543521528,0.05594007,3265.1,3264.9,0.55]
[1736543521699,0.7783,3265.3,3264.9,0.55]
[1736543521899,0.05600903,3265.2,3264.9,0.55]
[1736543522133,0.7783,3265.3,3264.9,0.55]
[1736543522311,0.05600903,3265.2,3264.9,0.55]
[1736543522510,0.7783,3265.3,3264.9,0.55]
[1736543522726,0.05600903,3265.2,3264.9,0.55]
[1736543523033,0.8028,3265.9,3265.4,0.55]
[1736543523235,0.8028,3266.2,3265.4,0.03062152]
[1736543523412,0.8028,3266.5,3265.6,0.55]
[1736543523611,0.8028,3266.5,3266.0,0.55]
[1736543524137,6.1828,3266.9,3266.1,0.58061586]
[1736543524322,6.1828,3266.9,3266.1,0.55]
[1736543524636,3.0611,3266.8,3265.9,3.06187]
[1736543524812,3.8709,3266.8,3265.9,3.746427]
[1736543526818,0.8098,3266.7,3266.0,0.55]
[1736543527140,6.4905297,3266.7,3266.0,0.55]
[1736543529041,3.0613,3266.6,3266.0,0.55]
[1736543529202,3.4293297,3266.7,3266.0,0.55]
[1736543529408,0.04794304,3266.5,3266.0,0.55]
[1736543529609,0.04801194,3266.6,3266.0,0.55]
[1736543529809,0.04787413,3266.4,3266.0,0.98271841]
[1736543530048,0.04794304,3266.5,3266.0,0.98271841]
[1736543530252,0.04780523,3266.3,3266.0,0.98271841]
[1736543530425,0.04787413,3266.4,3266.0,0.98271841]
[1736543530624,0.04773631,3266.2,3266.0,0.98271841]